[Event "ChessKid Cup Div-II 2023"]
[Site "Online"]
[Date "2023.05.22"]
[Round "1.2"]
[White "Nguyen, Ngoc Truong Son"]
[Black "Andreikin, Dmitry"]
[Result "1/2-1/2"]
[ECO "D02"]
[WhiteElo "2645"]
[BlackElo "2729"]
[Annotator "TA"]
[PlyCount "161"]
[EventDate "2023.05.21"]
[EventType "k.o."]
[EventCountry "NET"]
[SourceTitle "playchess.com"]
[Source "ChessBase"]
[SourceQuality "1"]
[TimeControl "900+3"]

{[%evp 9,161,8,19,4,4,5,5,15,8,5,10,3,8,12,14,8,4,0,0,0,1,-6,-1,-14,-6,-8,-17,-18,0,0,0,0,0,0,0,0,0,0,0,0,-1,-18,0,0,0,-16,0,-39,-41,-68,-68,-68,-68,-68,-68,-68,-68,-68,-68,-68,-68,-68,-68,-68,-68,-68,-68,-68,-68,-68,-68,-68,-68,-68,-68,-68,-68,-68,-68,-68,-68,-68,-68,-68,-68,-68,-68,-68,-68,-68,-68,-68,-68,-68,-61,-68,0,-68,0,-68,-68,-68,-68,-68,-70,-70,-70,-70,-70,-70,-64,-64,-64,-64,-64,-70,-64,-64,-64,-64,-64,-64,-48,-48,-48,-48,-48,-48,-24,-24,-24,-24,0,0,0,0,0,0,0,0,0,0,0,0,0,0,0,0,0,0,0,0,0,0]} 1. d4 {[%emt 0:00:08]} Nf6 {[%emt 0:00:06]} 2. Nf3 {[%emt 0:00:02]} d5 {[%emt 0:00:04]} 3. Bf4 {[%emt 0:00:02]} c5 {[%emt 0:00:20]} 4. e3 {[%emt 0:00:07]} Nc6 {[%emt 0:00:01]} 5. c3 {[%emt 0:00:01]} Bg4 {[%emt 0:00:24]} 6. Qb3 {[%emt 0:00:36] D02: 1 d4 d5 2 Nf3 sidelines, including 2...Nf6 3 g3 and 2...Nf6 3 Bf4.} ({Of course not} 6. dxc5 e5 7. Bg5 Bxc5 $15) 6... Qc8 {[%emt 0:00:19]} 7. dxc5 {[%emt 0:00:24] [#]} e6 $146 {[%emt 0:00:29]} ({Predecessor:} 7... Bxf3 8. gxf3 e6 9. Bd6 Bxd6 10. cxd6 O-O 11. Rg1 Qd7 12. Qa4 Qxd6 13. Qh4 e5 {0-1 Chenchik,A (2100)-Volodin,I (2207) RUS-chB U16 Dagomys 2009 (8)}) 8. Ne5 {[%emt 0:00:19]} Bxc5 {[%emt 0:00:04]} 9. Nxg4 {[%emt 0:00:49]} Nxg4 {[%emt 0:00:03]} 10. Be2 {[%emt 0:00:04]} Nge5 {[%emt 0:00:36]} 11. Nd2 {[%emt 0:00:18]} O-O {[%emt 0:00:03]} 12. O-O {[%emt 0:00:06]} Rd8 {[%emt 0:00:13]} 13. Rad1 {[%emt 0:00:38]} Bd6 {[%emt 0:00:21]} 14. Bg3 {[%emt 0:00:28]} Qc7 {[%emt 0:00:15]} 15. Nf3 {[%emt 0:00:55]} Nxf3+ {[%emt 0:00:18]} 16. Bxf3 {[%emt 0:00:03]} Ne5 {[%emt 0:00:01]} 17. Bxe5 {[%emt 0:00:49]} Bxe5 {[%emt 0:00:00]} 18. g3 {[%emt 0:00:01]} Rd6 {[%emt 0:00:25]} 19. Rd2 {[%emt 0:00:17]} Rad8 {[%emt 0:00:02]} 20. Rfd1 {[%emt 0:00:03]} g6 {[%emt 0:00:03]} 21. a3 {[%emt 0:01:23][%cal Ba2a3,Ba3a4][%mdl 32]} Kg7 {[%emt 0:00:10]} 22. Kg2 {[%emt 0:00:22]} a6 {[%emt 0:00:04]} 23. Qc2 {[%emt 0:00:11]} h5 {[%emt 0:00:04]} 24. h4 {[%emt 0:00:15]} b5 {[%emt 0:00:02]} 25. a4 {[%emt 0:00:38]} b4 {[%emt 0:02:23]} 26. cxb4 {[%emt 0:00:04]} Qb7 {[%emt 0:01:50]} 27. Qb3 {[%emt 0:01:30]} Rb8 {[%emt 0:00:13]} (27... Rb6 $5 {[%cal Rb6b4]}) 28. b5 {[%emt 0:00:27]} axb5 {[%emt 0:00:00]} 29. axb5 {[%emt 0:00:22]} Qxb5 {[%emt 0:00:03]} 30. Qxb5 {[%emt 0:00:09]} Rxb5 {[%emt 0:00:00]} 31. e4 {[%emt 0:01:19] [#]} dxe4 $1 {[%emt 0:00:03]} 32. Bxe4 {[%emt 0:00:37]} Rxd2 {[%emt 0:00:02]} 33. Rxd2 {[%emt 0:00:01]} Bxb2 $15 {[%emt 0:00:01][%mdl 4096] Endgame KRB-KRB} 34. f4 {[%emt 0:00:06]} Rb4 {[%emt 0:00:13]} 35. Bf3 {[%emt 0:00:04]} Bd4 {[%emt 0:00:02]} 36. Re2 {[%emt 0:00:08]} Rb1 {[%emt 0:00:36]} 37. Rd2 {[%emt 0:00:04]} Be3 {[%emt 0:00:03]} 38. Re2 {[%emt 0:00:03]} Bb6 {[%emt 0:00:03]} 39. Rc2 {[%emt 0:00:04]} Rg1+ {[%emt 0:00:02]} 40. Kh2 {[%emt 0:00:02][%cal Of3h5]} Re1 {[%emt 0:00:02]} 41. Kg2 {[%emt 0:00:03]} Ra1 {[%emt 0:00:03]} 42. Rb2 {[%emt 0:00:02]} Bd4 {[%emt 0:00:02]} 43. Rd2 {[%emt 0:00:01]} Bf6 {[%emt 0:00:04]} 44. Re2 {[%emt 0:00:04]} Ra4 {[%emt 0:00:03]} 45. Re4 {[%emt 0:00:03]} Ra3 {[%emt 0:00:02]} 46. Re2 {[%emt 0:00:02]} Bd4 {[%emt 0:00:04]} 47. Rd2 {[%emt 0:00:02]} Be3 {[%emt 0:00:01]} 48. Rc2 {[%emt 0:00:02]} Kf6 {[%emt 0:00:02]} 49. Rb2 {[%emt 0:00:07]} Rc3 {[%emt 0:00:13]} 50. Ra2 {[%emt 0:00:02]} Ke7 {[%emt 0:00:02]} 51. Rb2 {[%emt 0:00:04]} Kd6 {[%emt 0:00:30]} 52. Ra2 {[%emt 0:00:09]} Ke7 {[%emt 0:00:26]} 53. Rb2 $1 {[%emt 0:00:02]} Kf6 {[%emt 0:00:03]} 54. Ra2 $1 {[%emt 0:00:03]} Bb6 {[%emt 0:00:01]} 55. Rb2 {[%emt 0:00:07]} Bc7 {[%emt 0:00:01]} 56. Re2 {[%emt 0:00:17]} e5 {[%emt 0:00:19]} 57. fxe5+ {[%emt 0:00:04]} Bxe5 {[%emt 0:00:00]} 58. Ra2 {[%emt 0:00:08]} Ke7 {[%emt 0:00:15]} 59. Re2 {[%emt 0:00:14]} Rc5 {[%emt 0:00:05]} 60. Rd2 {[%emt 0:00:09]} Ra5 {[%emt 0:00:03]} 61. Re2 {[%emt 0:00:14]} Kf6 {[%emt 0:00:01]} 62. Rc2 {[%emt 0:00:03]} Kg7 {[%emt 0:00:02]} 63. Re2 {[%emt 0:00:04]} Kh6 {[%emt 0:00:02]} 64. Re3 {[%emt 0:00:06]} f6 {[%emt 0:00:06]} 65. Be2 {[%emt 0:00:15]} g5 {[%emt 0:00:38]} 66. hxg5+ {[%emt 0:00:02]} fxg5 {[%emt 0:00:00]} 67. Rb3 {[%emt 0:00:04]} Ra2 {[%emt 0:00:04]} 68. Kf1 {[%emt 0:00:11]} g4 {[%emt 0:00:31]} 69. Rb6+ {[%emt 0:00:11]} Kg5 {[%emt 0:00:10]} 70. Rb5 {[%emt 0:00:10]} Kf6 {[%emt 0:00:01] [#] ...Ra3 would be deadly.} 71. Rb6+ $1 {[%emt 0:00:03] The position is equal.} Kg7 {[%emt 0:00:09]} 72. Rb7+ {[%emt 0:00:03]} Kf6 {[%emt 0:00:47]} 73. Rb6+ $1 {[%emt 0:00:02]} Ke7 {[%emt 0:00:02]} 74. Rh6 {[%emt 0:00:13]} Ra1+ {[%emt 0:00:17]} 75. Kg2 {[%emt 0:00:05]} Ra2 {[%emt 0:00:05]} 76. Kf1 {[%emt 0:00:03]} Bd4 {[%emt 0:00:12]} 77. Rxh5 {[%emt 0:00:08]} Ra1+ {[%emt 0:00:03]} 78. Kg2 {[%emt 0:00:02]} Ra2 {[%emt 0:00:03]} 79. Kf1 {[%emt 0:00:01]} Ra1+ {[%emt 0:00:01]} 80. Kg2 {[%emt 0:00:01]} Ra2 {[%emt 0:00:01]} 81. Kf1 {[%emt 0:00:01] Weighted Error Value: White=0.02 (flawless) /Black=0.04 (flawless)} 1/2-1/2

[Event "ChessKid Cup Div-II 2023"]
[Site "Online"]
[Date "2023.05.22"]
[Round "1.2"]
[White "Kravtsiv, Martyn"]
[Black "Anton Guijarro, David"]
[Result "1/2-1/2"]
[ECO "D35"]
[WhiteElo "2598"]
[BlackElo "2690"]
[Annotator "TA"]
[PlyCount "249"]
[EventDate "2023.05.21"]
[EventType "k.o."]
[EventCountry "NET"]
[SourceTitle "playchess.com"]
[Source "ChessBase"]
[SourceQuality "1"]
[TimeControl "900+3"]

{[%evp 102,249,8,0,88,20,25,20,25,20,25,21,25,30,30,25,38,38,38,8,8,8,8,8,8,8,8,8,8,8,8,8,8,0,11,0,0,0,8,0,0,0,8,8,8,8,8,8,8,8,8,8,8,8,8,8,8,8,8,8,8,8,8,8,8,8,8,0,8,8,8,0,0,0,8,8,8,8,8,0,8,8,8,8,8,0,0,0,0,0,0,0,0,0,0,0,8,0,0,0,8,8,8,8,8,8,8,8,8,8,8,0,0,0,8,8,8,8,8,8,8,8,8,8,9,8,8,8,8,8,9,8,8,0,12,8,8,8,8,8,8,8,8,8,8,0,8,0,8,0]} 1. d4 {[%emt 0:00:06]} d5 {[%emt 0:00:11]} 2. c4 {[%emt 0:00:03]} e6 {[%emt 0:00:02]} 3. Nc3 {[%emt 0:00:03]} Nf6 {[%emt 0:00:03]} 4. cxd5 {[%emt 0:00:02]} exd5 {[%emt 0:00:01]} 5. Bg5 {[%emt 0:00:02]} c6 {[%emt 0:00:02]} 6. e3 {[%emt 0:00:02]} h6 {[%emt 0:00:02]} 7. Bh4 {[%emt 0:00:34]} Bf5 {[%emt 0:00:04]} 8. Bd3 {[%emt 0:01:54]} Bxd3 {[%emt 0:00:02]} 9. Qxd3 {[%emt 0:00:00]} Be7 {[%emt 0:00:09]} 10. Nge2 {[%emt 0:00:13]} O-O {[%emt 0:00:03]} 11. Bxf6 {[%emt 0:00:28]} Bxf6 {[%emt 0:00:03]} 12. O-O {[%emt 0:00:01]} Be7 {[%emt 0:00:13]} 13. Ng3 {[%emt 0:00:51]} Re8 {[%emt 0:00:44]} 14. f3 {[%emt 0:00:10]} Nd7 {[%emt 0:01:12]} 15. Rad1 {[%emt 0:01:05]} Qb6 {[%emt 0:03:01]} 16. Kh1 {[%emt 0:02:45]} Qxb2 {[%emt 0:01:46]} 17. Rb1 {[%emt 0:00:04]} Qa3 {[%emt 0:00:02]} 18. Rxb7 {[%emt 0:00:06]} Nb6 {[%emt 0:00:15]} 19. Rb1 {[%emt 0:00:34]} Bb4 {[%emt 0:02:21]} 20. Rb3 {[%emt 0:02:33]} Qc1+ {[%emt 0:00:12]} 21. Qf1 {[%emt 0:00:02]} Qc2 {[%emt 0:02:38]} 22. Qe2 {[%emt 0:00:10]} Qc1+ {[%emt 0:00:29]} 23. Qf1 {[%emt 0:00:03]} Qc2 {[%emt 0:00:05]} 24. Qe2 {[%emt 0:00:15]} Qxe2 {[%emt 0:00:26]} 25. Ncxe2 {[%emt 0:00:03]} Bf8 {[%emt 0:00:22]} 26. Rc7 {[%emt 0:00:28]} Rec8 {[%emt 0:00:13]} 27. Rxc8 {[%emt 0:00:10]} Rxc8 {[%emt 0:00:00]} 28. Kg1 {[%emt 0:00:28]} c5 {[%emt 0:00:02]} 29. dxc5 {[%emt 0:00:14]} Rxc5 {[%emt 0:00:01]} 30. Nd4 {[%emt 0:00:41]} Ra5 {[%emt 0:00:22]} 31. Rb2 {[%emt 0:00:52]} Nc4 {[%emt 0:00:01]} 32. Re2 {[%emt 0:00:02]} Ra3 {[%emt 0:00:17]} 33. Nf1 {[%emt 0:00:38]} Bc5 {[%emt 0:00:12]} 34. Nb3 {[%emt 0:00:39]} Bb6 {[%emt 0:00:02]} 35. Kf2 {[%emt 0:00:03]} a5 {[%emt 0:00:07]} 36. Nbd2 {[%emt 0:00:15]} Rxa2 {[%emt 0:00:27]} 37. Nxc4 {[%emt 0:00:02]} Rxe2+ {[%emt 0:00:01]} 38. Kxe2 {[%emt 0:00:00]} dxc4 {[%emt 0:00:00]} 39. Nd2 {[%emt 0:00:02]} c3 {[%emt 0:00:01]} 40. Nc4 {[%emt 0:00:01]} Bc5 {[%emt 0:00:07]} 41. Nxa5 {[%emt 0:00:06]} c2 {[%emt 0:00:25]} 42. Nb3 {[%emt 0:00:01]} Bb6 {[%emt 0:00:01]} 43. Kd3 {[%emt 0:00:04]} f5 {[%emt 0:00:02]} 44. e4 {[%emt 0:00:02]} fxe4+ {[%emt 0:00:02]} 45. fxe4 {[%emt 0:00:02]} Kf7 {[%emt 0:00:01]} 46. Kxc2 {[%emt 0:00:01]} Bg1 {[%emt 0:00:02]} 47. h3 {[%emt 0:00:03]} Kf6 {[%emt 0:00:01]} 48. Nd2 {[%emt 0:00:01]} Ba7 {[%emt 0:00:08]} 49. Nf3 {[%emt 0:00:01]} Ke6 {[%emt 0:00:02]} 50. Kd3 {[%emt 0:00:01]} g6 {[%emt 0:00:02]} 51. Nh4 {[%emt 0:00:03]} Kf6 $1 {[%emt 0:00:02]} 52. Nf3 {[%emt 0:00:03]} (52. g4 $11) 52... Ke6 $16 {[%emt 0:00:02]} 53. Kc4 {[%emt 0:00:09]} ({White should try} 53. Nd4+ $16 Kf6 54. Nc6) 53... Bb6 {[%emt 0:00:02]} 54. Kc3 {[%emt 0:00:06]} Be3 {[%emt 0:00:02]} 55. Kc2 {[%emt 0:00:02]} Ba7 {[%emt 0:00:01]} 56. Kd2 {[%emt 0:00:01]} Bb6 {[%emt 0:00:02]} 57. Ke2 {[%emt 0:00:00]} Ba7 {[%emt 0:00:00]} 58. Nh4 {[%emt 0:00:02]} Ke5 {[%emt 0:00:14]} 59. Kf3 {[%emt 0:00:02]} Kf6 $1 {[%emt 0:00:03]} 60. g3 {[%emt 0:00:14]} Bb8 {[%emt 0:00:04]} 61. Ng2 {[%emt 0:00:03]} h5 {[%emt 0:00:02]} 62. Ne3 {[%emt 0:00:01]} Ke5 {[%emt 0:00:06]} 63. Nd5 {[%emt 0:00:04]} Bd6 {[%emt 0:00:01]} 64. Nf4 {[%emt 0:00:03]} Kf6 {[%emt 0:00:01]} 65. Nd3 {[%emt 0:00:02]} Bb8 {[%emt 0:00:02]} 66. Nb4 {[%emt 0:00:03]} Bd6 {[%emt 0:00:02]} 67. Nd5+ {[%emt 0:00:01]} Ke5 {[%emt 0:00:01]} 68. g4 {[%emt 0:00:00]} hxg4+ {[%emt 0:00:01]} 69. hxg4 {[%emt 0:00:00]} Bb8 {[%emt 0:00:03]} 70. Nb6 {[%emt 0:00:10]} (70. g5 $5 Ke6 $8 71. Nf4+ Kf7 72. Kg4 $11) 70... Bc7 {[%emt 0:00:04]} 71. Nd7+ {[%emt 0:00:01]} Ke6 {[%emt 0:00:06]} 72. Nc5+ {[%emt 0:00:04]} Ke5 {[%emt 0:00:01]} 73. g5 {[%emt 0:00:04]} Kd6 {[%emt 0:00:18]} 74. Nd3 {[%emt 0:00:03]} Ke6 {[%emt 0:00:01]} 75. Kg4 {[%emt 0:00:03]} Bb8 {[%emt 0:00:06]} 76. Nf4+ {[%emt 0:00:02]} Kf7 $1 {[%emt 0:00:01]} 77. Ng2 {[%emt 0:00:05]} Ke6 {[%emt 0:00:01]} 78. Nh4 {[%emt 0:00:03]} Kf7 $1 {[%emt 0:00:01]} 79. Kf3 {[%emt 0:00:02]} Bc7 {[%emt 0:00:02]} 80. Ke2 {[%emt 0:00:02]} Bd8 {[%emt 0:00:02]} 81. Nf3 {[%emt 0:00:01]} Ke6 {[%emt 0:00:01]} 82. Ke3 {[%emt 0:00:01]} Bb6+ {[%emt 0:00:01]} 83. Kf4 {[%emt 0:00:01]} Bc7+ {[%emt 0:00:01]} 84. Ke3 {[%emt 0:00:06]} Bb6+ {[%emt 0:00:01]} 85. Kd3 {[%emt 0:00:00]} Bd8 {[%emt 0:00:03]} 86. Nd4+ {[%emt 0:00:02]} Kd6 {[%emt 0:00:08]} 87. Nf3 {[%emt 0:00:03]} Ke6 {[%emt 0:00:01]} 88. Kd4 {[%emt 0:00:02]} Bb6+ {[%emt 0:00:01]} 89. Kc4 {[%emt 0:00:00]} Be3 {[%emt 0:00:01]} 90. Kb5 {[%emt 0:00:03]} Kd6 {[%emt 0:00:04]} 91. Kb4 {[%emt 0:00:06]} Bc1 {[%emt 0:00:05]} 92. Kc4 {[%emt 0:00:01]} Be3 {[%emt 0:00:02]} 93. Kb5 {[%emt 0:00:02]} Bc1 {[%emt 0:00:10]} 94. Kb6 {[%emt 0:00:02]} Bf4 {[%emt 0:00:05]} 95. Kb7 {[%emt 0:00:02]} Kd7 {[%emt 0:00:01]} 96. Kb6 {[%emt 0:00:08]} Kd6 {[%emt 0:00:01]} 97. Kb5 {[%emt 0:00:00]} Be3 {[%emt 0:00:02]} 98. Kc4 {[%emt 0:00:03]} Ke6 {[%emt 0:00:02]} 99. Kb3 {[%emt 0:00:03]} Kd6 {[%emt 0:00:02]} 100. Kc3 {[%emt 0:00:02]} Bf4 {[%emt 0:00:01]} 101. Kd4 {[%emt 0:00:03]} Ke6 {[%emt 0:00:08]} 102. e5 {[%emt 0:00:01]} Bc1 {[%emt 0:00:04]} 103. Ke4 {[%emt 0:00:01]} Ke7 {[%emt 0:00:12]} 104. Kd5 {[%emt 0:00:02]} Bf4 {[%emt 0:00:01]} 105. e6 {[%emt 0:00:14]} Bc1 {[%emt 0:00:01]} 106. Ke5 {[%emt 0:00:05]} Bb2+ {[%emt 0:00:06]} 107. Kd5 {[%emt 0:00:03]} Bc1 {[%emt 0:00:00]} 108. Ne5 {[%emt 0:00:01]} Bxg5 {[%emt 0:00:02]} 109. Nxg6+ {[%emt 0:00:01]} Ke8 {[%emt 0:00:01]} 110. Ne5 {[%emt 0:00:01]} Bc1 {[%emt 0:00:02]} 111. Nc4 {[%emt 0:00:01]} Bg5 {[%emt 0:00:02]} 112. Ke5 {[%emt 0:00:02]} Be7 {[%emt 0:00:06]} 113. Nb6 {[%emt 0:00:05]} Ba3 {[%emt 0:00:02]} 114. Nd5 {[%emt 0:00:01]} Bb2+ {[%emt 0:00:02]} 115. Kf5 {[%emt 0:00:02]} Ba3 {[%emt 0:00:00]} 116. Nc7+ {[%emt 0:00:03]} Ke7 {[%emt 0:00:02]} 117. Nd5+ {[%emt 0:00:01]} Ke8 {[%emt 0:00:01]} 118. Kf6 {[%emt 0:00:00]} Bb2+ {[%emt 0:00:01]} 119. Kg6 {[%emt 0:00:01]} Ba3 {[%emt 0:00:01]} 120. Nf6+ {[%emt 0:00:03]} Ke7 {[%emt 0:00:02]} 121. Kf5 {[%emt 0:00:01]} Bc1 {[%emt 0:00:05]} 122. Ne4 $1 {[%emt 0:00:01]} Ba3 {[%emt 0:00:03]} 123. Nf6 {[%emt 0:00:02]} Bc1 {[%emt 0:00:01]} 124. Ne4 {[%emt 0:00:00]} Ba3 {[%emt 0:00:01]} 125. Nf6 {[%emt 0:00:01]} 1/2-1/2

[Event "ChessKid Cup Div-II 2023"]
[Site "Online"]
[Date "2023.05.22"]
[Round "1.2"]
[White "Rasulov, Vugar"]
[Black "Eljanov, Pavel"]
[Result "1/2-1/2"]
[ECO "D63"]
[WhiteElo "2523"]
[BlackElo "2705"]
[Annotator "TA"]
[PlyCount "90"]
[EventDate "2023.05.21"]
[EventType "k.o."]
[EventCountry "NET"]
[SourceTitle "playchess.com"]
[Source "ChessBase"]
[SourceQuality "1"]
[TimeControl "900+3"]

{[%evp 14,90,23,9,10,20,51,43,49,31,27,30,32,36,39,4,6,10,8,3,7,0,0,3,12,0,8,0,18,14,18,6,22,22,28,16,10,9,8,0,4,6,6,6,11,-3,-12,-1,0,0,0,0,0,0,10,0,0,-10,0,0,0,-36,-36,-36,-36,-51,-57,-42,-45,-54,-36,-36,0,0,0,-36,0,-25,0]} 1. d4 {[%emt 0:00:03]} Nf6 {[%emt 0:00:06]} 2. c4 {[%emt 0:00:02]} e6 {[%emt 0:00:02]} 3. Nc3 {[%emt 0:00:01]} d5 {[%emt 0:00:01]} 4. Bg5 {[%emt 0:00:04][%cal Bc1g5,Bg5h4,Bh4g3][%mdl 32]} Be7 {[%emt 0:00:01]} 5. e3 {[%emt 0:00:01]} h6 {[%emt 0:00:05]} 6. Bh4 {[%emt 0:00:03]} O-O {[%emt 0:00:03]} 7. Nf3 {[%emt 0:00:03]} Nbd7 {[%emt 0:00:08]} 8. Rc1 {[%emt 0:00:04]} c5 {[%emt 0:00:17] D63: Queen's Gambit Declined: Classical: 7 Rc1.} 9. dxc5 {[%emt 0:00:40]} g5 {[%emt 0:01:01] 9...Nxc5 is the modern continuation.} 10. Bg3 {[%emt 0:00:49]} Nxc5 {[%emt 0:00:07] White is slightly better.} 11. cxd5 {[%emt 0:00:16]} (11. h4 $5 {[%cal Rh4g5]} g4 12. Ne5 $11) 11... Nxd5 {[%emt 0:00:16]} 12. Nxd5 {[%emt 0:00:19]} Qxd5 {[%emt 0:00:01]} 13. Qxd5 {[%emt 0:00:03]} exd5 {[%emt 0:00:00]} 14. Nd4 {[%emt 0:00:41]} Bd7 {[%emt 0:00:51]} 15. Be2 {[%emt 0:00:57] [#]} Rfc8 $146 {[%emt 0:01:06][%cal Oc5d3]} ({Predecessor:} 15... Rac8 16. O-O Ne4 17. Rfd1 Nxg3 18. hxg3 Bf6 19. Bf3 Be6 20. Nxe6 fxe6 21. Bg4 Kf7 22. Rxc8 Rxc8 23. Rxd5 {½-½ Ivanchuk,V (2710)-Yu,Y (2765) Olympiad-43 Batumi 2018 (7.3)}) 16. O-O {[%emt 0:00:04]} Ne4 {[%emt 0:00:42]} 17. Be5 {[%emt 0:00:08]} f6 {[%emt 0:00:19]} 18. Bg3 {[%emt 0:00:14]} Kf7 {[%emt 0:01:05]} 19. Rfd1 {[%emt 0:00:06]} Rxc1 {[%emt 0:01:43]} 20. Rxc1 {[%emt 0:00:03]} Rc8 {[%emt 0:00:02]} 21. Rxc8 {[%emt 0:00:42]} Bxc8 {[%emt 0:00:01]} 22. Bb8 {[%emt 0:00:00]} a6 {[%emt 0:00:09]} 23. Bh5+ {[%emt 0:00:30]} Kf8 {[%emt 0:00:23]} 24. h3 {[%emt 0:00:36]} Bc5 {[%emt 0:00:19]} 25. Bd1 {[%emt 0:00:30]} Ke7 {[%emt 0:00:25]} 26. Bb3 {[%emt 0:00:07]} Bxd4 {[%emt 0:00:37]} 27. exd4 $11 {[%emt 0:00:00][%mdl 4096] Endgame KBB-KBN} Be6 {[%emt 0:00:05]} 28. Bc2 {[%emt 0:00:03]} Nd6 {[%emt 0:00:20]} 29. Ba7 {[%emt 0:00:13]} Bf5 {[%emt 0:00:11]} 30. Bd1 {[%emt 0:00:11]} Nc4 {[%emt 0:00:45]} 31. b3 {[%emt 0:00:10]} Nb2 {[%emt 0:00:11]} 32. Bc5+ {[%emt 0:00:21]} Ke6 {[%emt 0:00:25]} 33. Be2 {[%emt 0:00:25]} Nd3 {[%emt 0:00:29] [#] White must now prevent ...Nxc5.} 34. Ba3 {[%emt 0:01:08]} Nf4 {[%emt 0:00:08]} 35. Bd1 {[%emt 0:00:04]} Bb1 {[%emt 0:00:15]} 36. g3 {[%emt 0:00:03]} Nd3 {[%emt 0:00:27]} 37. Kf1 {[%emt 0:00:36]} b5 {[%emt 0:00:03][%cal Ob5b4] [#] And now ...b4! would win.} (37... Bxa2 $2 38. Bc2 $18) 38. Bf8 {[%emt 0:00:36]} Bxa2 {[%emt 0:00:19]} 39. h4 {[%emt 0:00:47]} Nc1 {[%emt 0:00:17]} 40. b4 {[%emt 0:00:34]} Bc4+ {[%emt 0:00:02]} 41. Kg2 {[%emt 0:00:00]} Be2 {[%emt 0:00:03]} 42. Bc2 {[%emt 0:00:16]} Bd3 {[%emt 0:00:12]} 43. Bd1 {[%emt 0:00:01]} Be2 {[%emt 0:00:03]} 44. Bc2 {[%emt 0:00:04]} Bd3 {[%emt 0:01:08]} 45. Bd1 {[%emt 0:00:03]} Be2 {[%emt 0:00:01] Weighted Error Value: White=0.06 (flawless) /Black=0.06 (flawless)} 1/2-1/2

[Event "ChessKid Cup Div-II 2023"]
[Site "Online"]
[Date "2023.05.22"]
[Round "1.2"]
[White "Gharibyan, Mamikon"]
[Black "Sadhwani, Raunak"]
[Result "1-0"]
[ECO "D02"]
[WhiteElo "2500"]
[BlackElo "2627"]
[Annotator "TA"]
[PlyCount "65"]
[EventDate "2023.05.21"]
[EventType "k.o."]
[EventCountry "NET"]
[SourceTitle "playchess.com"]
[Source "ChessBase"]
[SourceQuality "1"]
[TimeControl "900+3"]

{[%evp 9,65,6,12,-6,11,-9,2,0,0,0,-3,0,12,18,12,31,29,20,18,6,5,11,30,0,0,0,0,-16,36,27,29,42,53,11,111,70,111,88,140,101,123,0,6,-93,-77,-66,79,-63,-52,-44,105,95,868,855,957,903,748,750]} 1. d4 {[%emt 0:00:04]} Nf6 {[%emt 0:00:05]} 2. Nf3 {[%emt 0:00:06]} d5 {[%emt 0:00:04]} 3. c3 {[%emt 0:00:15]} e6 {[%emt 0:00:04]} 4. Bf4 {[%emt 0:00:02]} Bd6 {[%emt 0:00:03]} 5. e3 {[%emt 0:00:01]} O-O {[%emt 0:00:02]} 6. Nbd2 {[%emt 0:00:08] D02: 1 d4 d5 2 Nf3 sidelines, including 2...Nf6 3 g3 and 2...Nf6 3 Bf4.} c5 {[%emt 0:00:04]} 7. Bg3 {[%emt 0:00:05]} Qc7 {[%emt 0:00:04]} 8. dxc5 {[%emt 0:00:05] The position is equal.} Qxc5 {[%emt 0:00:10]} 9. Bd3 {[%emt 0:00:01]} Nbd7 {[%emt 0:00:16]} 10. Qe2 {[%emt 0:00:11]} Qc7 {[%emt 0:00:09]} 11. e4 {[%emt 0:00:20] e5 is the strong threat.} dxe4 {[%emt 0:00:01]} 12. Nxe4 {[%emt 0:00:07]} Nxe4 {[%emt 0:00:02]} 13. Qxe4 {[%emt 0:00:03][%csl Gd3][%cal Re4h7]} Nf6 {[%emt 0:00:01]} 14. Qe2 {[%emt 0:00:15] [#]} Rd8 $146 {[%emt 0:00:16]} ({Predecessor:} 14... b6 15. Rd1 Rd8 16. O-O Bb7 17. Ng5 h6 18. Ne4 Nxe4 19. Bxe4 Bxg3 20. hxg3 Rac8 {½-½ Schulze,M (2123)-Buckels,V (2304) GER-ch Net blitz sf 2021 (2)}) 15. O-O-O {[%emt 0:00:28]} b6 {[%emt 0:00:37]} 16. Ne5 {[%emt 0:02:53]} Bb7 {[%emt 0:00:11]} 17. f4 {[%emt 0:00:39]} a5 {[%emt 0:00:55][%cal Ob6b5]} 18. Kb1 {[%emt 0:01:07]} a4 {[%emt 0:00:01]} (18... b5 $11) 19. a3 $1 $14 {[%emt 0:00:03]} Nd5 {[%emt 0:00:22]} 20. c4 {[%emt 0:00:40]} (20. Qh5 g6 21. Qe2 Nxc3+ 22. bxc3 Qxc3 $17) 20... Nf6 {[%emt 0:00:01]} 21. Bh4 {[%emt 0:00:11]} Be7 {[%emt 0:00:02]} (21... Bxe5 $1 $11 {keeps the balance.} 22. fxe5 Rxd3 23. Rxd3 Be4) 22. Bc2 {[%emt 0:00:21]} g6 {[%emt 0:00:13]} 23. Rhf1 {[%emt 0:00:33] White is more active.} Nh5 {[%emt 0:02:51]} (23... Ne8 $142 24. Bxe7 Qxe7) 24. Rxd8+ {[%emt 0:00:32]} Rxd8 {[%emt 0:01:34]} 25. Be1 {[%emt 0:02:43]} ({White should play} 25. Bxe7 $16 Qxe7 26. Bxa4) 25... f6 {[%emt 0:01:24] [#]} 26. Nxg6 {[%emt 0:00:30]} hxg6 $17 {[%emt 0:00:00]} 27. Qxe6+ {[%emt 0:00:01]} Kh8 {[%emt 0:02:00]} (27... Kf8 $1 $15 {keeps the upper hand.} 28. Bxg6 (28. Bxa4 $2 Bxg2 29. Rf2 Nxf4 $19) 28... Rd1+ 29. Kc2 (29. Ka2 $2 Bd5 $19 {[%mdl 64] Double Attack}) 29... Bd5) 28. Bxg6 {[%emt 0:01:06]} (28. Qg4 $2 Qxc4 29. Rf2 (29. Qxg6 $2 Rd1+ {[%mdl 64] Deflection} 30. Bxd1 Be4+ $19) 29... Be4 $19) (28. Bc3 $16 {And now g4 would win.} Bc8 29. Qf7) 28... Rd1+ $15 {[%emt 0:02:33]} (28... Nxf4 {is a self mate.} 29. Rxf4 Rd1+ 30. Ka2 Bd8 31. Qh3+ Kg8 32. Rh4 Kf8 33. Bb4+) (28... Bxg2 $2 29. Qg4 Bc5 30. Qxg2 $18) 29. Kc2 $1 {[%emt 0:00:30]} Rd4 {[%emt 0:00:44]} (29... Nxf4 $2 30. Rxf4 $18) (29... Bd5 $2 30. Qh3 $18) (29... Rd6 $1 $15 {stays ahead.} 30. Qf7 Ng7) 30. Bc3 $40 {[%emt 0:00:31][%mdl 1152] White has strong compensation. Black is in trouble. Really sharp!} (30. Bxh5 $2 Be4+ 31. Kc1 Rxc4+ 32. Bc3 Rxc3+ 33. bxc3 Qxc3+ 34. Kd1 Qd3+ 35. Ke1 Qe3+ 36. Kd1 Bc2+ {[%mdl 64] Discovered Attack} 37. Kxc2 Qxe6 $19) 30... Bc8 $2 {[%emt 0:00:53][%mdl 8192]} (30... Qxc4 $16 31. Qxc4 Rxc4) 31. Qf7 $18 {[%emt 0:00:40][%csl Gg6][%cal Rf7h7] White is clearly winning.} Ng7 {[%emt 0:00:00]} 32. Re1 {[%emt 0:00:22][%cal Oe1e7]} (32. Bxd4 $2 {too greedy.} Be6 33. Bc3 Bxc4 $19) 32... Be6 {[%emt 0:00:50]} 33. Rxe6 {[%emt 0:00:13] Weighted Error Value: White=0.27 (precise) /Black=0.31} (33. Bxd4 $2 {perishes.} Qxc4+ 34. Bc3 Bxf7 $19) 1-0